[Event "*** Titled Tuesday Blitz"]
[Site "Chess.com"]
[Date "2019.06.04"]
[Round "5"]
[White "Angry_Twin"]
[Black "Vuk2000"]
[Result "1/2-1/2"]
[WhiteElo "2806"]
[BlackElo "2735"]
[TimeControl "180+2"]
[EndTime "14:08:38 PDT"]
[Termination "Game drawn - insufficient material"]

1. e4 {[%clk 0:03:01.9]} 1... d5 {[%clk 0:02:58.8]} 2. exd5 {[%clk 0:03:02.5]}
2... Qxd5 {[%clk 0:02:59.6]} 3. Nc3 {[%clk 0:03:04.1]} 3... Qd6 {[%clk
0:03:00.5]} 4. d4 {[%clk 0:03:05.3]} 4... Nf6 {[%clk 0:03:01.5]} 5. Nf3 {[%clk
0:03:06.6]} 5... c6 {[%clk 0:03:02]} 6. Ne5 {[%clk 0:03:06.3]} 6... Nbd7 {[%clk
0:03:02.4]} 7. Nc4 {[%clk 0:03:07.2]} 7... Qc7 {[%clk 0:03:03.3]} 8. a4 {[%clk
0:03:02.7]} 8... g6 {[%clk 0:03:02.1]} 9. a5 {[%clk 0:03:02.9]} 9... Bg7 {[%clk
0:03:02.6]} 10. Be2 {[%clk 0:03:04.1]} 10... O-O {[%clk 0:03:00.4]} 11. O-O
{[%clk 0:03:05.5]} 11... Nd5 {[%clk 0:02:59]} 12. Ne4 {[%clk 0:03:03.5]} 12...
e5 {[%clk 0:02:56.2]} 13. dxe5 {[%clk 0:02:30.2]} 13... Nxe5 {[%clk 0:02:55]}
14. Ncd6 {[%clk 0:02:26.7]} 14... f5 {[%clk 0:02:03.7]} 15. Nxc8 {[%clk
0:02:27.4]} 15... fxe4 {[%clk 0:02:04.2]} 16. c4 {[%clk 0:02:28.4]} 16... Raxc8
{[%clk 0:01:21.4]} 17. cxd5 {[%clk 0:02:29]} 17... Rcd8 {[%clk 0:01:20.1]} 18.
Be3 {[%clk 0:02:24.2]} 18... Rxd5 {[%clk 0:01:19.2]} 19. Qb3 {[%clk 0:02:25.2]}
19... Nd3 {[%clk 0:01:18]} 20. Bxa7 {[%clk 0:02:21.1]} 20... Nxb2 {[%clk
0:01:09.7]} 21. Rab1 {[%clk 0:02:15.9]} 21... Nd3 {[%clk 0:01:01.4]} 22. Bb6
{[%clk 0:02:05.7]} 22... Qf7 {[%clk 0:01:00.3]} 23. f3 {[%clk 0:02:06.2]} 23...
Rd7 {[%clk 0:00:29]} 24. Qxf7+ {[%clk 0:01:59.6]} 24... Rfxf7 {[%clk 0:00:29.4]}
25. fxe4 {[%clk 0:02:00.7]} 25... Rxf1+ {[%clk 0:00:22.4]} 26. Bxf1 {[%clk
0:02:00.2]} 26... Ne5 {[%clk 0:00:11]} 27. Bc5 {[%clk 0:01:54.8]} 27... Bh6
{[%clk 0:00:07.3]} 28. h3 {[%clk 0:01:12.8]} 28... Bf8 {[%clk 0:00:06.1]} 29.
Be3 {[%clk 0:01:11.1]} 29... Bd6 {[%clk 0:00:06.4]} 30. Be2 {[%clk 0:01:10.1]}
30... Kg7 {[%clk 0:00:06.3]} 31. Bd4 {[%clk 0:01:10.3]} 31... Bc7 {[%clk
0:00:07.3]} 32. Rxb7 {[%clk 0:01:09.6]} 32... Rxd4 {[%clk 0:00:07.4]} 33. Rxc7+
{[%clk 0:01:10.4]} 33... Kf6 {[%clk 0:00:08.6]} 34. a6 {[%clk 0:01:11.6]} 34...
Rxe4 {[%clk 0:00:09.8]} 35. a7 {[%clk 0:01:07.6]} 35... Ra4 {[%clk 0:00:10.2]}
36. Rxh7 {[%clk 0:01:09]} 36... Ke6 {[%clk 0:00:09.3]} 37. Rb7 {[%clk 0:01:05]}
37... Kd6 {[%clk 0:00:09.3]} 38. Kf2 {[%clk 0:01:02.7]} 38... Nd7 {[%clk
0:00:09.2]} 39. Bf3 {[%clk 0:01:01.3]} 39... Ne5 {[%clk 0:00:05.9]} 40. Be4
{[%clk 0:01:00.9]} 40... Nd7 {[%clk 0:00:04.2]} 41. Bxg6 {[%clk 0:00:57.2]}
41... Nc5 {[%clk 0:00:05]} 42. Rg7 {[%clk 0:00:57.2]} 42... Ne6 {[%clk
0:00:06.3]} 43. Rb7 {[%clk 0:00:54.8]} 43... Nc5 {[%clk 0:00:06.8]} 44. Rf7
{[%clk 0:00:56.2]} 44... Ne6 {[%clk 0:00:07.9]} 45. Bh5 {[%clk 0:00:32.9]} 45...
Nc7 {[%clk 0:00:08.7]} 46. Bf3 {[%clk 0:00:33.4]} 46... Rxa7 {[%clk 0:00:05.5]}
47. Rf6+ {[%clk 0:00:34.6]} 47... Ne6 {[%clk 0:00:06.5]} 48. Bg4 {[%clk
0:00:35.5]} 48... Ra2+ {[%clk 0:00:03.8]} 49. Ke1 {[%clk 0:00:33.9]} 49... Ra1+
{[%clk 0:00:04.6]} 50. Kd2 {[%clk 0:00:34.7]} 50... Ra2+ {[%clk 0:00:05.6]} 51.
Kc1 {[%clk 0:00:30.9]} 51... Rxg2 {[%clk 0:00:04.4]} 52. Rxe6+ {[%clk
0:00:32.1]} 52... Kd5 {[%clk 0:00:05.6]} 53. Re8 {[%clk 0:00:28.6]} 53... Rh2
{[%clk 0:00:06.2]} 54. Kd1 {[%clk 0:00:28.4]} 54... c5 {[%clk 0:00:07]} 55. Ke1
{[%clk 0:00:26.7]} 55... c4 {[%clk 0:00:08.3]} 56. Kf1 {[%clk 0:00:27.8]} 56...
c3 {[%clk 0:00:08.4]} 57. Bf3+ {[%clk 0:00:19.7]} 57... Kd4 {[%clk 0:00:08.2]}
58. Bg2 {[%clk 0:00:21]} 58... c2 {[%clk 0:00:04.5]} 59. Rc8 {[%clk 0:00:22]}
59... Kd3 {[%clk 0:00:05.5]} 60. Kg1 {[%clk 0:00:23]} 60... Rxh3 {[%clk
0:00:04.8]} 61. Bxh3 {[%clk 0:00:17.1]} 61... Kd2 {[%clk 0:00:06]} 62. Rd8+
{[%clk 0:00:18.4]} 62... Kc3 {[%clk 0:00:05.2]} 63. Rc8+ {[%clk 0:00:18]} 63...
Kd2 {[%clk 0:00:06.3]} 64. Rxc2+ {[%clk 0:00:18.7]} 64... Kxc2 {[%clk
0:00:07.3]} 1/2-1/2

[Event "*** Titled Tuesday Blitz"]
[Site "Chess.com"]
[Date "2019.06.04"]
[Round "5"]
[White "1g41-0"]
[Black "ChessWarrior7197"]
[Result "0-1"]
[WhiteElo "2506"]
[BlackElo "2844"]
[TimeControl "180+2"]
[EndTime "14:08:46 PDT"]
[Termination "ChessWarrior7197 won by resignation"]

1. e4 {[%clk 0:03:01.9]} 1... c5 {[%clk 0:02:59.9]} 2. Nf3 {[%clk 0:03:02.9]}
2... d6 {[%clk 0:03:00.7]} 3. d4 {[%clk 0:03:04.3]} 3... cxd4 {[%clk 0:03:02.6]}
4. Nxd4 {[%clk 0:03:06.1]} 4... Nf6 {[%clk 0:03:03.6]} 5. Nc3 {[%clk 0:03:06.9]}
5... a6 {[%clk 0:03:04.7]} 6. Bg5 {[%clk 0:03:08.4]} 6... e6 {[%clk 0:03:05.3]}
7. f4 {[%clk 0:03:09.5]} 7... h6 {[%clk 0:03:06.6]} 8. Bh4 {[%clk 0:03:10.3]}
8... Qb6 {[%clk 0:03:08.1]} 9. a3 {[%clk 0:03:11.4]} 9... Be7 {[%clk 0:03:09.4]}
10. Bf2 {[%clk 0:03:12.6]} 10... Qc7 {[%clk 0:03:11]} 11. Qf3 {[%clk 0:03:13.8]}
11... Nbd7 {[%clk 0:03:11.5]} 12. O-O-O {[%clk 0:03:15.2]} 12... b5 {[%clk
0:03:12.8]} 13. g4 {[%clk 0:03:14.3]} 13... Bb7 {[%clk 0:03:13.9]} 14. Kb1
{[%clk 0:03:15.3]} 14... Rc8 {[%clk 0:03:12.2]} 15. Bg2 {[%clk 0:03:16]} 15...
g5 {[%clk 0:03:11.3]} 16. h4 {[%clk 0:03:08.7]} 16... gxf4 {[%clk 0:03:11.8]}
17. g5 {[%clk 0:03:04.7]} 17... Ne5 {[%clk 0:03:11]} 18. Qxf4 {[%clk 0:03:03.5]}
18... hxg5 {[%clk 0:03:11.9]} 19. hxg5 {[%clk 0:03:03.6]} 19... Rxh1 {[%clk
0:03:13]} 20. Rxh1 {[%clk 0:03:05]} 20... Nfd7 {[%clk 0:03:14.1]} 21. Rh8+
{[%clk 0:03:04.3]} 21... Nf8 {[%clk 0:03:15]} 22. Rg8 {[%clk 0:02:48.3]} 22...
Ng6 {[%clk 0:03:02.8]} 23. Qg4 {[%clk 0:02:36.3]} 23... Qc4 {[%clk 0:02:57.3]}
24. Qe2 {[%clk 0:02:06.4]} 24... Qxe2 {[%clk 0:02:56]} 25. Ncxe2 {[%clk
0:02:08.3]} 25... Bxg5 {[%clk 0:02:54.6]} 26. Bh3 {[%clk 0:01:55.6]} 26... Ke7
{[%clk 0:02:51.7]} 27. Nf5+ {[%clk 0:01:50.7]} 27... exf5 {[%clk 0:02:47.1]} 28.
exf5 {[%clk 0:01:52.6]} 28... Be4 {[%clk 0:01:51.9]} 29. f6+ {[%clk 0:01:38.7]}
29... Kd8 {[%clk 0:01:50.1]} 30. Bb6+ {[%clk 0:01:34.6]} 30... Rc7 {[%clk
0:01:50.6]} 31. Nd4 {[%clk 0:01:20.5]} 31... Bxf6 {[%clk 0:01:45]} 32. Nf5
{[%clk 0:01:04.8]} 32... Bxc2+ {[%clk 0:01:35.1]} 33. Ka2 {[%clk 0:01:01.7]}
33... Be5 {[%clk 0:01:12.2]} 34. Ne3 {[%clk 0:00:51]} 34... Be4 {[%clk
0:01:10.5]} 35. b4 {[%clk 0:00:23.9]} 35... d5 {[%clk 0:01:09.6]} 36. Nf5 {[%clk
0:00:23.8]} 36... d4 {[%clk 0:01:05.5]} 37. Nxd4 {[%clk 0:00:21.2]} 37... Bxd4
{[%clk 0:01:04.6]} 38. Bxd4 {[%clk 0:00:23.1]} 38... Rc2+ {[%clk 0:01:01.7]} 39.
Kb3 {[%clk 0:00:23.6]} 39... Rd2 {[%clk 0:00:58]} 40. Bf6+ {[%clk 0:00:20.4]}
40... Ke8 {[%clk 0:00:57.6]} 41. Bg4 {[%clk 0:00:20.2]} 41... Bd5+ {[%clk
0:00:54.1]} 42. Kc3 {[%clk 0:00:20.5]} 42... Rf2 {[%clk 0:00:53.3]} 43. Bd4
{[%clk 0:00:20.9]} 43... Rg2 {[%clk 0:00:52.9]} 44. Bf5 {[%clk 0:00:10.8]} 44...
Nf4 {[%clk 0:00:49.6]} 45. Bg7 {[%clk 0:00:08.3]} 45... Rxg7 {[%clk 0:00:40.3]}
46. Rxg7 {[%clk 0:00:09.3]} 46... Ke7 {[%clk 0:00:41.5]} 47. Rg8 {[%clk
0:00:08.9]} 47... N4e6 {[%clk 0:00:40.3]} 48. Rg1 {[%clk 0:00:08.6]} 48... Kf6
{[%clk 0:00:40.7]} 49. Bc2 {[%clk 0:00:09.4]} 49... Ke5 {[%clk 0:00:41.2]} 50.
Re1+ {[%clk 0:00:10.6]} 50... Kd6 {[%clk 0:00:42.4]} 51. Rf1 {[%clk 0:00:12.3]}
51... Nc7 {[%clk 0:00:43.3]} 52. Rf6+ {[%clk 0:00:12.3]} 52... Be6 {[%clk
0:00:44.5]} 53. Rh6 {[%clk 0:00:10.5]} 53... Nd7 {[%clk 0:00:44.3]} 54. Kd4
{[%clk 0:00:10.9]} 54... Ne5 {[%clk 0:00:44.6]} 55. Be4 {[%clk 0:00:09.1]} 55...
Nc4 {[%clk 0:00:43.4]} 56. Rh8 {[%clk 0:00:04.7]} 56... Nxa3 {[%clk 0:00:44]}
57. Rd8+ {[%clk 0:00:06.5]} 57... Ke7 {[%clk 0:00:45.3]} 58. Rh8 {[%clk
0:00:08.4]} 58... Nc4 {[%clk 0:00:46.1]} 59. Kc5 {[%clk 0:00:09.9]} 59... Nd6
{[%clk 0:00:43.9]} 60. Bg2 {[%clk 0:00:08.9]} 60... Kd7 {[%clk 0:00:39.4]} 61.
Bc6+ {[%clk 0:00:10.4]} 61... Ke7 {[%clk 0:00:40.7]} 62. Rh2 {[%clk 0:00:12.1]}
62... Nc4 {[%clk 0:00:40.5]} 63. Rh8 {[%clk 0:00:12.7]} 63... Bd7 {[%clk
0:00:41.2]} 64. Bxd7 {[%clk 0:00:13.3]} 64... Kxd7 {[%clk 0:00:42.4]} 65. Rh7
{[%clk 0:00:15.2]} 65... Ne6+ {[%clk 0:00:43.3]} 66. Kd5 {[%clk 0:00:15.1]}
66... Nb6+ {[%clk 0:00:44.6]} 67. Ke5 {[%clk 0:00:16.1]} 67... Ke7 {[%clk
0:00:46.5]} 68. Rh1 {[%clk 0:00:15.4]} 68... f6+ {[%clk 0:00:47.5]} 69. Kf5
{[%clk 0:00:16.6]} 69... Nd4+ {[%clk 0:00:47.8]} 70. Ke4 {[%clk 0:00:17.6]}
70... Nc6 {[%clk 0:00:49.7]} 71. Rh7+ {[%clk 0:00:17.9]} 71... Kd6 {[%clk
0:00:50.3]} 72. Rb7 {[%clk 0:00:19.1]} 72... Nd5 {[%clk 0:00:51.4]} 73. Rf7
{[%clk 0:00:17.1]} 73... Ncxb4 {[%clk 0:00:51.8]} 74. Rf8 {[%clk 0:00:18.5]}
74... a5 {[%clk 0:00:52.8]} 75. Rd8+ {[%clk 0:00:19.9]} 75... Kc5 {[%clk
0:00:53.6]} 76. Rc8+ {[%clk 0:00:21.1]} 76... Nc6 {[%clk 0:00:54.9]} 77. Kf5
{[%clk 0:00:21.7]} 77... Ne7+ {[%clk 0:00:55.4]} 78. Kxf6 {[%clk 0:00:23]} 78...
Nxc8 {[%clk 0:00:57.3]} 0-1

[Event "*** Titled Tuesday Blitz"]
[Site "Chess.com"]
[Date "2019.06.04"]
[Round "5"]
[White "LuckIsMySkill"]
[Black "MatthewG-p4p"]
[Result "1/2-1/2"]
[WhiteElo "2665"]
[BlackElo "2784"]
[TimeControl "180+2"]
[EndTime "14:08:59 PDT"]
[Termination "Game drawn by repetition"]

1. b4 {[%clk 0:03:01]} 1... c6 {[%clk 0:02:58.5]} 2. e3 {[%clk 0:03:01.3]} 2...
Nf6 {[%clk 0:02:44.1]} 3. Bb2 {[%clk 0:03:01.8]} 3... a5 {[%clk 0:02:44.5]} 4.
b5 {[%clk 0:03:00.3]} 4... a4 {[%clk 0:02:42]} 5. Nf3 {[%clk 0:03:00.5]} 5... g6
{[%clk 0:02:42.4]} 6. Bxf6 {[%clk 0:02:56.8]} 6... exf6 {[%clk 0:02:44.3]} 7. c4
{[%clk 0:02:57.7]} 7... Bg7 {[%clk 0:02:46.2]} 8. Nc3 {[%clk 0:02:58.6]} 8... a3
{[%clk 0:02:45.7]} 9. Be2 {[%clk 0:02:55.5]} 9... O-O {[%clk 0:02:43.9]} 10. O-O
{[%clk 0:02:56.5]} 10... d6 {[%clk 0:02:40.4]} 11. Rb1 {[%clk 0:02:56.5]} 11...
Nd7 {[%clk 0:02:27.5]} 12. d4 {[%clk 0:02:56.6]} 12... f5 {[%clk 0:02:27]} 13.
Rb3 {[%clk 0:02:47.6]} 13... Nb6 {[%clk 0:02:20.3]} 14. Qc1 {[%clk 0:02:40.6]}
14... Be6 {[%clk 0:02:19.7]} 15. bxc6 {[%clk 0:02:35.2]} 15... bxc6 {[%clk
0:02:20.6]} 16. Nd2 {[%clk 0:02:35.3]} 16... f4 {[%clk 0:02:18.5]} 17. Rxa3
{[%clk 0:02:34.2]} 17... fxe3 {[%clk 0:02:19.7]} 18. fxe3 {[%clk 0:02:34.9]}
18... c5 {[%clk 0:02:17.7]} 19. dxc5 {[%clk 0:02:16.1]} 19... dxc5 {[%clk
0:02:17.6]} 20. Rxa8 {[%clk 0:02:16.9]} 20... Qxa8 {[%clk 0:02:17.4]} 21. Bf3
{[%clk 0:02:13.8]} 21... Qa5 {[%clk 0:02:17.3]} 22. Nd5 {[%clk 0:02:12.1]} 22...
Nd7 {[%clk 0:02:17.7]} 23. Qc2 {[%clk 0:02:04.1]} 23... Ne5 {[%clk 0:02:18.8]}
24. Nb3 {[%clk 0:02:04.6]} 24... Qa4 {[%clk 0:02:18.3]} 25. Be2 {[%clk
0:01:58.3]} 25... Ra8 {[%clk 0:02:12.4]} 26. Nc7 {[%clk 0:01:28.6]} 26... Qxa2
{[%clk 0:02:10.5]} 27. Rc1 {[%clk 0:01:29.6]} 27... Qxc2 {[%clk 0:02:04.2]} 28.
Rxc2 {[%clk 0:01:30.4]} 28... Rc8 {[%clk 0:02:05.7]} 29. Nxe6 {[%clk 0:01:31.2]}
29... fxe6 {[%clk 0:02:07.6]} 30. Kf2 {[%clk 0:01:16.6]} 30... Bh6 {[%clk
0:02:03.5]} 31. Bf3 {[%clk 0:01:07.7]} 31... Kf7 {[%clk 0:01:53.6]} 32. Ke2
{[%clk 0:01:08.5]} 32... Ke7 {[%clk 0:01:53.7]} 33. Be4 {[%clk 0:01:03.4]} 33...
Ng4 {[%clk 0:01:53.4]} 34. Ra2 {[%clk 0:01:02.6]} 34... Rc7 {[%clk 0:01:51.1]}
35. Ra5 {[%clk 0:00:38.7]} 35... Nxe3 {[%clk 0:01:48.9]} 36. Rxc5 {[%clk
0:00:39.2]} 36... Rxc5 {[%clk 0:01:49.7]} 37. Nxc5 {[%clk 0:00:40.4]} 37... Nxc4
{[%clk 0:01:51.6]} 38. Bd3 {[%clk 0:00:41.3]} 38... Nb6 {[%clk 0:01:43.3]} 39.
Ne4 {[%clk 0:00:42.2]} 39... Nd5 {[%clk 0:01:42.4]} 40. g3 {[%clk 0:00:42.6]}
40... Nb4 {[%clk 0:01:40.1]} 41. Bc4 {[%clk 0:00:42.3]} 41... Nc6 {[%clk
0:01:39.2]} 42. Nd2 {[%clk 0:00:42.7]} 42... Bxd2 {[%clk 0:01:37.7]} 43. Kxd2
{[%clk 0:00:44.2]} 43... Kd6 {[%clk 0:01:39.2]} 44. Ke3 {[%clk 0:00:45]} 44...
Ne5 {[%clk 0:01:40.3]} 45. Be2 {[%clk 0:00:46.2]} 45... Kd5 {[%clk 0:01:40.4]}
46. Bd1 {[%clk 0:00:41.5]} 46... g5 {[%clk 0:01:36]} 47. Bc2 {[%clk 0:00:31.2]}
47... h6 {[%clk 0:01:37]} 48. Bb3+ {[%clk 0:00:32.4]} 48... Kd6 {[%clk
0:01:36.8]} 49. Ke4 {[%clk 0:00:34.1]} 49... Ng4 {[%clk 0:01:37.6]} 50. h4
{[%clk 0:00:33.8]} 50... Nf6+ {[%clk 0:01:36.4]} 51. Ke3 {[%clk 0:00:33.6]}
51... Ke5 {[%clk 0:01:35.9]} 52. Bc2 {[%clk 0:00:34.1]} 52... Nh5 {[%clk
0:01:34]} 53. Kf3 {[%clk 0:00:34.6]} 53... Nf6 {[%clk 0:01:34.8]} 54. hxg5
{[%clk 0:00:35.8]} 54... hxg5 {[%clk 0:01:35.5]} 55. Ke3 {[%clk 0:00:36.1]}
55... Nd7 {[%clk 0:01:18.9]} 56. Kf3 {[%clk 0:00:36.1]} 56... Kf6 {[%clk
0:01:18.9]} 57. Ke4 {[%clk 0:00:35.7]} 57... Ne5 {[%clk 0:01:13.9]} 58. Bd1
{[%clk 0:00:35.6]} 58... Nc4 {[%clk 0:01:13.2]} 59. Be2 {[%clk 0:00:36.4]} 59...
Nd6+ {[%clk 0:01:14.5]} 60. Kf3 {[%clk 0:00:35.4]} 60... Nf5 {[%clk 0:01:14.3]}
61. Bd3 {[%clk 0:00:35.7]} 61... Ke5 {[%clk 0:01:11.2]} 62. Kg4 {[%clk
0:00:36.3]} 62... Kf6 {[%clk 0:01:12.4]} 63. Bb1 {[%clk 0:00:31.6]} 63... Nd6
{[%clk 0:01:08.3]} 64. Bc2 {[%clk 0:00:31.3]} 64... Nc4 {[%clk 0:01:06.4]} 65.
Kf3 {[%clk 0:00:31.8]} 65... Ke5 {[%clk 0:01:06.7]} 66. Bd3 {[%clk 0:00:30.7]}
66... Nd6 {[%clk 0:01:03.8]} 67. Kg4 {[%clk 0:00:31.1]} 67... Kf6 {[%clk
0:01:03.4]} 68. Bb1 {[%clk 0:00:32.2]} 68... e5 {[%clk 0:01:04.8]} 69. Kf3
{[%clk 0:00:33]} 69... Nf5 {[%clk 0:01:04.9]} 70. Bd3 {[%clk 0:00:24]} 70... Nh6
{[%clk 0:00:57.3]} 71. Ke4 {[%clk 0:00:22]} 71... Ke6 {[%clk 0:00:57.9]} 72.
Bc4+ {[%clk 0:00:22.6]} 72... Kf6 {[%clk 0:00:57.7]} 73. Bd3 {[%clk 0:00:21.4]}
73... Nf7 {[%clk 0:00:46.6]} 74. Kd5 {[%clk 0:00:22.3]} 74... Nh6 {[%clk
0:00:40.7]} 75. Ke4 {[%clk 0:00:22.2]} 1/2-1/2

[Event "*** Titled Tuesday Blitz"]
[Site "Chess.com"]
[Date "2019.06.04"]
[Round "5"]
[White "colemman"]
[Black "TheRigos"]
[Result "0-1"]
[WhiteElo "2595"]
[BlackElo "2437"]
[TimeControl "180+2"]
[EndTime "14:09:03 PDT"]
[Termination "TheRigos won by checkmate"]

1. d4 {[%clk 0:03:01.9]} 1... Nf6 {[%clk 0:02:52.6]} 2. Nf3 {[%clk 0:03:03.1]}
2... g6 {[%clk 0:02:47.8]} 3. Nbd2 {[%clk 0:03:03.9]} 3... d5 {[%clk 0:02:44]}
4. e3 {[%clk 0:03:04.2]} 4... Bg7 {[%clk 0:02:26.4]} 5. b4 {[%clk 0:03:04.8]}
5... O-O {[%clk 0:02:10.2]} 6. Bb2 {[%clk 0:03:05.3]} 6... a5 {[%clk 0:01:54.8]}
7. b5 {[%clk 0:03:05.9]} 7... Nbd7 {[%clk 0:01:52.5]} 8. c4 {[%clk 0:03:04.7]}
8... a4 {[%clk 0:01:04.3]} 9. Rc1 {[%clk 0:03:03.7]} 9... c6 {[%clk 0:00:50.2]}
10. Be2 {[%clk 0:02:51.8]} 10... Ne4 {[%clk 0:00:47.4]} 11. Nxe4 {[%clk
0:02:49.2]} 11... dxe4 {[%clk 0:00:48.5]} 12. Nd2 {[%clk 0:02:50.4]} 12... f5
{[%clk 0:00:21.9]} 13. O-O {[%clk 0:02:47.1]} 13... Nf6 {[%clk 0:00:23]} 14. Qc2
{[%clk 0:02:33]} 14... Be6 {[%clk 0:00:23.8]} 15. Ba3 {[%clk 0:02:18.5]} 15...
Qc7 {[%clk 0:00:23.5]} 16. h3 {[%clk 0:02:09]} 16... Rfd8 {[%clk 0:00:24]} 17.
Rfd1 {[%clk 0:02:08.7]} 17... Bf7 {[%clk 0:00:19.8]} 18. Nf1 {[%clk 0:01:57.8]}
18... h5 {[%clk 0:00:14.6]} 19. Nd2 {[%clk 0:01:40.9]} 19... Kh7 {[%clk
0:00:15.7]} 20. Rb1 {[%clk 0:01:39.1]} 20... e5 {[%clk 0:00:07.7]} 21. bxc6
{[%clk 0:01:26]} 21... bxc6 {[%clk 0:00:06.2]} 22. Bc5 {[%clk 0:01:26]} 22...
exd4 {[%clk 0:00:06.6]} 23. exd4 {[%clk 0:01:20.4]} 23... Nd7 {[%clk 0:00:06.9]}
24. Nf1 {[%clk 0:01:17.3]} 24... Nxc5 {[%clk 0:00:07.5]} 25. dxc5 {[%clk
0:01:18.9]} 25... Qe5 {[%clk 0:00:08.3]} 26. Rxd8 {[%clk 0:01:12.9]} 26... Rxd8
{[%clk 0:00:08.9]} 27. Qxa4 {[%clk 0:01:13.6]} 27... Qxc5 {[%clk 0:00:10.1]} 28.
Qc2 {[%clk 0:01:10.2]} 28... Bd4 {[%clk 0:00:10.2]} 29. Bd1 {[%clk 0:01:02.3]}
29... Qxc4 {[%clk 0:00:11.7]} 30. Rb7 {[%clk 0:00:48.8]} 30... Qxc2 {[%clk
0:00:08.3]} 31. Bxc2 {[%clk 0:00:46.5]} 31... Kg8 {[%clk 0:00:09.6]} 32. a4
{[%clk 0:00:45.8]} 32... Bc4 {[%clk 0:00:08.8]} 33. a5 {[%clk 0:00:37.1]} 33...
Bc3 {[%clk 0:00:04.6]} 34. Ne3 {[%clk 0:00:34.8]} 34... Bb5 {[%clk 0:00:04.3]}
35. Bb3+ {[%clk 0:00:29.7]} 35... Kh8 {[%clk 0:00:05.9]} 36. Bf7 {[%clk
0:00:26.3]} 36... Bd4 {[%clk 0:00:05.1]} 37. Bxg6 {[%clk 0:00:22.7]} 37... Bxe3
{[%clk 0:00:06.5]} 38. fxe3 {[%clk 0:00:22.8]} 38... f4 {[%clk 0:00:08.4]} 39.
Kf2 {[%clk 0:00:19.9]} 39... Rd2+ {[%clk 0:00:08.3]} 40. Ke1 {[%clk 0:00:20.9]}
40... Re2+ {[%clk 0:00:08.9]} 41. Kd1 {[%clk 0:00:21.5]} 41... Rxe3 {[%clk
0:00:10]} 42. Bxh5 {[%clk 0:00:20.1]} 42... Ra3 {[%clk 0:00:10.4]} 43. Bg6
{[%clk 0:00:18.4]} 43... e3 {[%clk 0:00:09.8]} 44. Re7 {[%clk 0:00:17.1]} 44...
e2+ {[%clk 0:00:08.4]} 45. Kd2 {[%clk 0:00:17]} 45... Rxa5 {[%clk 0:00:09.5]}
46. h4 {[%clk 0:00:18.3]} 46... Ra2+ {[%clk 0:00:09.8]} 47. Bc2 {[%clk
0:00:17.7]} 47... Ba4 {[%clk 0:00:08.5]} 48. Kxe2 {[%clk 0:00:18.2]} 48... Rxc2+
{[%clk 0:00:06.7]} 49. Kf3 {[%clk 0:00:19.7]} 49... Rc4 {[%clk 0:00:08.6]} 50.
h5 {[%clk 0:00:20.3]} 50... Bd1+ {[%clk 0:00:09.7]} 51. Kf2 {[%clk 0:00:21]}
51... Bxh5 {[%clk 0:00:10.9]} 52. Re5 {[%clk 0:00:21.1]} 52... Rc2+ {[%clk
0:00:11.4]} 53. Kf1 {[%clk 0:00:21.7]} 53... Bg6 {[%clk 0:00:11.9]} 54. Re6
{[%clk 0:00:21.7]} 54... Kg7 {[%clk 0:00:12.9]} 55. Kg1 {[%clk 0:00:23.3]} 55...
Bf5 {[%clk 0:00:12.2]} 56. Rd6 {[%clk 0:00:24.3]} 56... Be4 {[%clk 0:00:11.5]}
57. Kf1 {[%clk 0:00:21.8]} 57... Bxg2+ {[%clk 0:00:12.2]} 58. Ke1 {[%clk
0:00:23.1]} 58... f3 {[%clk 0:00:12.4]} 59. Rd7+ {[%clk 0:00:21.2]} 59... Kf6
{[%clk 0:00:12.5]} 60. Rd8 {[%clk 0:00:22.5]} 60... f2+ {[%clk 0:00:10.3]} 61.
Kd1 {[%clk 0:00:21]} 61... f1=Q+ {[%clk 0:00:11.8]} 62. Kxc2 {[%clk 0:00:21.7]}
62... Be4+ {[%clk 0:00:12.8]} 63. Kd2 {[%clk 0:00:21.3]} 63... Qf4+ {[%clk
0:00:12.1]} 64. Kc3 {[%clk 0:00:21.6]} 64... Qe5+ {[%clk 0:00:12.8]} 65. Kc4
{[%clk 0:00:23]} 65... Bd5+ {[%clk 0:00:13.8]} 66. Kc5 {[%clk 0:00:23.3]} 66...
Qc3+ {[%clk 0:00:14.3]} 67. Kb6 {[%clk 0:00:24.3]} 67... Qb4+ {[%clk 0:00:14.2]}
68. Kc7 {[%clk 0:00:25.5]} 68... Qa5+ {[%clk 0:00:15.2]} 69. Kc8 {[%clk
0:00:27]} 69... Be6+ {[%clk 0:00:16.1]} 70. Kb8 {[%clk 0:00:27.5]} 70... Qxd8+
{[%clk 0:00:16.9]} 71. Kb7 {[%clk 0:00:28.3]} 71... Bd5 {[%clk 0:00:15.5]} 72.
Ka6 {[%clk 0:00:29]} 72... Ke6 {[%clk 0:00:16.7]} 73. Kb7 {[%clk 0:00:30]} 73...
Kd6 {[%clk 0:00:16.4]} 74. Ka6 {[%clk 0:00:31.9]} 74... Qb8 {[%clk 0:00:14.4]}
75. Ka5 {[%clk 0:00:32.5]} 75... Qb5# {[%clk 0:00:16.3]} 0-1